fUSD/lending_fUSD_20240708
["ID","MTS","AMOUNT","RATE_DAILY","PERIOD"]
[331498472,1720440542127,-500.0,0.00050684,120]
[331498473,1720440542201,-500.0,0.00050684,120]
[331498474,1720440542272,-500.0,0.00050684,120]
[331498475,1720440542343,-891.8,0.00050684,120]
[331498476,1720440542413,-500.0,0.00050684,120]
[331498477,1720440542482,-500.0,0.00050684,120]
[331498478,1720440542550,-500.0,0.00050684,120]
[331498479,1720440542623,-500.0,0.00050684,120]
[331498480,1720440542691,-500.0,0.00050684,120]
[331498481,1720440542757,-608.44,0.00050684,120]
[331498482,1720440542827,-191.08591861,0.00050684,120]
[331498483,1720440542916,-500.0,0.00050684,120]
[331498484,1720440542997,-705.57,0.00050684,120]
[331498485,1720440543068,-500.0,0.00050684,120]
[331498486,1720440543141,-500.0,0.00050684,120]
[331498487,1720440543211,-500.0,0.00050684,120]
[331498488,1720440543283,-502.79,0.00050684,120]
[331498489,1720440543353,-500.0,0.00050684,120]
[331498490,1720440543424,-500.0,0.00050684,120]
[331498491,1720440543493,-500.0,0.00050684,120]
[331498492,1720440543565,-605.18,0.00050684,120]
[331498493,1720440543634,-500.0,0.00050684,120]
[331498494,1720440543705,-500.0,0.00050684,120]
[331498495,1720440543774,-500.0,0.00050684,120]
[331498496,1720440543843,-500.0,0.00050684,120]
[331498497,1720440543913,-500.0,0.00050684,120]
[331498498,1720440543983,-247.49980531,0.00050684,120]
[331498499,1720440544053,-500.0,0.00050684,120]
[331498500,1720440544127,-500.0,0.00050684,120]
[331498501,1720440544201,-500.0,0.00050684,120]
[331498502,1720440544274,-500.0,0.00050684,120]
[331498503,1720440544345,-500.0,0.00050684,120]
[331498504,1720440544416,-500.0,0.00050684,120]
[331498505,1720440544489,-500.0,0.00050684,120]
[331498506,1720440544562,-500.0,0.00050684,120]
[331498507,1720440544632,-500.0,0.00050684,120]
[331498508,1720440544704,-500.0,0.00050684,120]
[331498509,1720440544778,-500.0,0.00050684,120]
[331498510,1720440544851,-500.0,0.00050684,120]
[331498511,1720440544924,-500.0,0.00050684,120]
[331498512,1720440545000,-500.0,0.00050684,120]
[331498513,1720440545075,-712.81,0.00050684,120]
[331498514,1720440545153,-534.72,0.00050684,120]
[331498515,1720440545227,-521.34212528,0.00050684,120]
[331498516,1720440545299,-1760.36,0.00050684,120]
[331498517,1720440545376,-800.08,0.00050684,120]
[331498518,1720440545447,-500.0,0.00050684,120]
[331498519,1720440545516,-894.69,0.00050684,120]
[331498520,1720440545588,-723.54,0.00050684,120]
[331498521,1720440545660,-530.59,0.00050684,120]
[331498522,1720440545732,-500.0,0.00050684,120]
[331498523,1720440545810,-839.95,0.00050684,120]
[331498524,1720440545887,-500.0,0.00050684,120]
[331498525,1720440545962,-511.1,0.00050684,120]
[331498526,1720440546038,-500.0,0.00050684,120]
[331498527,1720440546121,-338.14591212,0.00050684,120]
[331498528,1720440546200,-760.52,0.00050684,120]
[331498529,1720440546274,-500.0,0.00050684,120]
[331498530,1720440546350,-866.49,0.00050684,120]
[331498531,1720440546425,-500.0,0.00050684,120]
[331498532,1720440546498,-500.0,0.00050684,120]
[331498533,1720440546570,-500.0,0.00050684,120]
[331498534,1720440546642,-500.0,0.00050684,120]
[331498535,1720440546712,-500.0,0.00050684,120]
[331498536,1720440546784,-500.0,0.00050684,120]
[331498537,1720440546856,-500.0,0.00050684,120]
[331498538,1720440546928,-500.0,0.00050684,120]
[331498539,1720440547204,-256.86924028,0.00050684,120]
[331498540,1720440547279,-500.0,0.00050684,120]
[331498541,1720440547352,-500.0,0.00050684,120]
[331498542,1720440547424,-500.0,0.00050684,120]
[331498543,1720440547496,-624.77752551,0.00050684,120]
[331498544,1720440547569,-500.0,0.00050684,120]
[331498545,1720440547642,-500.0,0.00050684,120]
[331498546,1720440547715,-500.0,0.00050684,120]
[331498547,1720440547786,-500.0,0.00050684,120]
[331498548,1720440547858,-500.0,0.00050684,120]
[331498549,1720440547928,-500.0,0.00050684,120]
[331498550,1720440548002,-402.92464602,0.00050684,120]
[331498551,1720440548073,-500.0,0.00050684,120]
[331498552,1720440548146,-893.31,0.00050684,120]
[331498553,1720440548218,-500.0,0.00050684,120]
[331498554,1720440548293,-500.0,0.00050684,120]
[331498555,1720440548367,-500.0,0.00050684,120]
[331498556,1720440548440,-500.0,0.00050684,120]
[331498557,1720440548512,-500.0,0.00050684,120]
[331498558,1720440548588,-500.0,0.00050684,120]
[331498559,1720440548665,-500.0,0.00050684,120]
[331498560,1720440548740,-500.0,0.00050684,120]
[331498561,1720440548816,-500.0,0.00050684,120]
[331498562,1720440548893,-500.0,0.00050684,120]
[331498563,1720440548972,-500.0,0.00050684,120]
[331498564,1720440549049,-500.0,0.00050684,120]
[331498565,1720440549132,-500.0,0.00050684,120]
[331498566,1720440549209,-500.0,0.00050684,120]
[331498567,1720440549284,-260.24716435,0.00050684,120]
[331498568,1720440549359,-500.0,0.00050684,120]
[331498569,1720440549433,-1290.88,0.00050684,120]
[331498570,1720440549513,-500.0,0.00050684,120]
[331498571,1720440549588,-500.0,0.00050684,120]
[331498572,1720440549661,-500.0,0.00050684,120]
[331498573,1720440549733,-500.0,0.00050684,120]
[331498574,1720440549806,-217.72807737,0.00050684,120]
[331498575,1720440549881,-500.0,0.00050684,120]
[331498576,1720440549955,-585.61,0.00050684,120]
[331498577,1720440550031,-574.25,0.00050684,120]
[331498578,1720440550107,-500.0,0.00050684,120]
[331498579,1720440550180,-500.0,0.00050684,120]
[331498580,1720440550254,-500.0,0.00050684,120]
[331498581,1720440550330,-500.0,0.00050684,120]
[331498582,1720440550408,-500.0,0.00050684,120]
[331498583,1720440550481,-500.0,0.00050684,120]
[331498584,1720440550554,-378.34704406,0.00050684,120]
[331498585,1720440550627,-455.80796022,0.00050684,120]
[331498586,1720440550701,-500.0,0.00050684,120]
[331498587,1720440550775,-500.0,0.00050684,120]
[331498588,1720440550855,-500.0,0.00050684,120]
[331498589,1720440550932,-891.99,0.00050684,120]
[331498590,1720440551011,-500.0,0.00050684,120]
[331498591,1720440551084,-500.0,0.00050684,120]
[331498592,1720440551159,-500.0,0.00050684,120]
[331498593,1720440551229,-518.21,0.00050684,120]
[331498594,1720440551300,-500.0,0.00050684,120]
[331498595,1720440551370,-500.0,0.00050684,120]
[331498596,1720440551440,-973.06,0.00050684,120]
[331498597,1720440551510,-1101.05,0.00050684,120]
[331498598,1720440551579,-500.0,0.00050684,120]
[331498599,1720440551649,-501.67065556,0.00050684,120]
[331498600,1720440551722,-500.0,0.00050684,120]
[331498601,1720440551800,-1143.52,0.00050684,120]
[331498602,1720440551877,-500.0,0.00050684,120]
[331498603,1720440551946,-500.0,0.00050684,120]
[331498604,1720440552018,-589.06,0.00050684,120]
[331498605,1720440552089,-500.0,0.00050684,120]
[331498606,1720440552160,-392.92,0.00050684,120]
[331498607,1720440552236,-500.0,0.00050684,120]
[331498608,1720440552306,-500.0,0.00050684,120]
[331498609,1720440552378,-729.17,0.00050684,120]
[331498610,1720440552449,-177.80896033,0.00050684,120]
[331498611,1720440552516,-500.0,0.00050684,120]
[331498612,1720440552585,-765.16,0.00050684,120]
[331498613,1720440552652,-500.0,0.00050684,120]
[331498614,1720440552721,-538.46,0.00050684,120]
[331498615,1720440552789,-500.0,0.00050684,120]
[331498616,1720440552858,-500.0,0.00050684,120]
[331498617,1720440552926,-500.0,0.00050684,120]
[331498618,1720440552996,-411.24361983,0.00050684,120]
[331498619,1720440553067,-500.0,0.00050684,120]
[331498620,1720440553143,-577.54,0.00050684,120]
[331498621,1720440553217,-987.37,0.00050684,120]
[331498622,1720440553295,-500.0,0.00050684,120]
[331498623,1720440553370,-500.0,0.00050684,120]
[331498624,1720440553443,-500.0,0.00050684,120]
[331498625,1720440553518,-500.0,0.00050684,120]
[331498626,1720440553591,-500.0,0.00050684,120]
[331498627,1720440553670,-500.0,0.00050684,120]
[331498628,1720440553743,-707.5,0.00050684,120]
[331498629,1720440553818,-500.0,0.00050684,120]
[331498630,1720440553896,-500.0,0.00050684,120]
[331498631,1720440553972,-943.37,0.00050684,120]
[331498632,1720440554050,-500.0,0.00050684,120]
[331498633,1720440554129,-500.0,0.00050684,120]
[331498634,1720440554206,-584.78,0.00050684,120]
[331498635,1720440554281,-500.0,0.00050684,120]
[331498636,1720440554356,-558.55,0.00050684,120]
[331498637,1720440554429,-500.0,0.00050684,120]
[331498638,1720440554504,-500.0,0.00050684,120]
[331498639,1720440554580,-718.31,0.00050684,120]
[331498640,1720440554656,-500.0,0.00050684,120]
[331498641,1720440554730,-500.0,0.00050684,120]
[331498642,1720440554807,-500.0,0.00050684,120]
[331498643,1720440554883,-511.83,0.00050684,120]
[331498644,1720440555232,-507.07239221,0.00050684,120]
[331498645,1720440555307,-500.0,0.00050684,120]
[331498646,1720440555383,-500.0,0.00050684,120]
[331498647,1720440555459,-500.0,0.00050684,120]
[331498648,1720440555532,-500.0,0.00050684,120]
[331498649,1720440555607,-500.0,0.00050684,120]
[331498650,1720440555683,-588.46,0.00050684,120]
[331498651,1720440555755,-500.0,0.00050684,120]
[331498652,1720440555828,-500.0,0.00050684,120]
[331498653,1720440555902,-725.12,0.00050684,120]
[331498654,1720440555975,-500.0,0.00050684,120]
[331498655,1720440556049,-510.12,0.00050684,120]
[331498656,1720440556129,-500.0,0.00050684,120]
[331498657,1720440556207,-1169.96,0.00050684,120]
[331498658,1720440556286,-500.0,0.00050684,120]
[331498659,1720440556358,-691.49,0.00050684,120]
[331498660,1720440556428,-500.0,0.00050684,120]
[331498661,1720440556498,-500.0,0.00050684,120]
[331498662,1720440556568,-500.0,0.00050684,120]
[331498663,1720440556639,-500.0,0.00050684,120]
[331498664,1720440556707,-500.0,0.00050684,120]
[331498665,1720440556776,-500.0,0.00050684,120]
[331498666,1720440556843,-500.0,0.00050684,120]
[331498667,1720440556909,-736.89,0.00050684,120]
[331498668,1720440556978,-500.0,0.00050684,120]
[331498669,1720440557053,-500.0,0.00050684,120]
[331498670,1720440557131,-500.0,0.00050684,120]
[331498671,1720440557207,-500.0,0.00050684,120]
[331498672,1720440557278,-561.83,0.00050684,120]
[331498673,1720440557347,-500.0,0.00050684,120]
[331498674,1720440557418,-500.0,0.00050684,120]
[331498675,1720440557485,-500.0,0.00050684,120]
[331498676,1720440557553,-500.0,0.00050684,120]
[331498677,1720440557621,-288.25098006,0.00050684,120]
[331498678,1720440557690,-500.0,0.00050684,120]
[331498679,1720440557758,-500.0,0.00050684,120]
[331498680,1720440557829,-618.32022201,0.00050684,120]
[331498681,1720440557897,-757.16,0.00050684,120]
[331498682,1720440557966,-619.16,0.00050684,120]
[331498683,1720440558039,-500.0,0.00050684,120]
[331498684,1720440558115,-519.91,0.00050684,120]
[331498685,1720440558189,-747.04,0.00050684,120]
[331498686,1720440558260,-500.0,0.00050684,120]
[331498687,1720440558332,-613.38,0.00050684,30]
[331498688,1720440558406,-500.0,0.00050684,120]
[331498689,1720440558477,-552.79,0.00050684,120]
[331498690,1720440558547,-500.0,0.00050684,120]
[331498691,1720440558616,-500.0,0.00050684,120]
[331498692,1720440558686,-591.58,0.00050684,120]
[331498693,1720440558754,-552.82083206,0.00050684,120]
[331498694,1720440558822,-1172.19,0.00050684,120]
[331498695,1720440558895,-500.0,0.00050684,120]
[331498696,1720440558965,-500.0,0.00050684,120]
[331498697,1720440559037,-500.0,0.00050684,120]
[331498698,1720440559113,-557.8,0.00050684,120]
[331498699,1720440559184,-1249.26,0.00050684,120]
[331498700,1720440559255,-500.0,0.00050684,120]
[331498701,1720440559325,-238.75108079,0.00050684,120]
[331498702,1720440559398,-807.07,0.00050684,120]
[331498703,1720440559468,-500.0,0.00050684,120]
[331498704,1720440559538,-500.0,0.00050684,120]
[331498705,1720440559603,-500.0,0.00050684,120]
[331498706,1720440559671,-800.07,0.00050684,120]
[331498707,1720440559739,-631.84036922,0.00050684,120]
[331498708,1720440559807,-500.0,0.00050684,120]
[331498709,1720440559874,-500.0,0.00050684,120]
[331498710,1720440559944,-967.69,0.00050684,120]
[331498711,1720440560014,-500.0,0.00050684,120]
[331498712,1720440560086,-1110.78,0.00050684,120]
[331498713,1720440560156,-593.07,0.00050684,120]
[331498714,1720440560227,-500.0,0.00050684,120]
[331498715,1720440560301,-666.97,0.00050684,120]
[331498716,1720440560372,-500.0,0.00050684,120]
[331498717,1720440560443,-663.11,0.00050684,120]
[331498718,1720440560518,-500.0,0.00050684,120]
[331498719,1720440560590,-586.75,0.00050684,120]
[331498720,1720440560662,-500.0,0.00050684,120]
[331498721,1720440560739,-500.0,0.00050684,120]
[331498722,1720440560815,-500.0,0.00050684,120]
[331498723,1720440560888,-594.57,0.00050684,120]
[331498724,1720440560955,-500.0,0.00050684,120]
[331498725,1720440561028,-500.0,0.00050684,120]
[331498726,1720440561102,-500.0,0.00050684,120]
[331498727,1720440561173,-500.0,0.00050684,120]
[331498728,1720440561245,-500.0,0.00050684,120]
[331498729,1720440561319,-731.67,0.00050684,120]
[331498730,1720440561393,-500.0,0.00050684,120]
[331498731,1720440561461,-500.0,0.00050684,120]
[331498732,1720440561530,-727.03,0.00050684,120]
[331498733,1720440561598,-500.0,0.00050684,120]
[331498734,1720440561670,-500.0,0.00050684,120]
[331498735,1720440561736,-500.0,0.00050684,120]
[331498736,1720440561806,-556.36,0.00050684,120]
[331498737,1720440561876,-678.58,0.00050684,120]
[331498738,1720440561947,-507.09,0.00050684,120]
[331498739,1720440562019,-828.76,0.00050684,120]
[331498740,1720440562093,-500.0,0.00050684,120]
[331498741,1720440562164,-228.28149155,0.00050684,120]
[331498742,1720440562236,-500.0,0.00050684,120]
[331498743,1720440562308,-500.0,0.00050684,120]
[331498744,1720440562378,-500.0,0.00050684,120]
[331498745,1720440562450,-500.0,0.00050684,120]
[331498746,1720440562517,-564.32,0.00050684,120]
[331498747,1720440562587,-890.2,0.00050684,120]
[331498748,1720440562844,-730.6,0.00050684,120]
[331498749,1720440562928,-500.0,0.00050684,120]
[331498750,1720440562998,-500.0,0.00050684,120]
[331498751,1720440563071,-795.04,0.00050684,120]
[331498752,1720440563144,-500.0,0.00050684,120]
[331498753,1720440563216,-500.0,0.00050684,120]
[331498754,1720440563290,-551.18,0.00050684,120]
[331498755,1720440563361,-500.0,0.00050684,120]
[331498756,1720440563435,-500.0,0.00050684,120]
[331498757,1720440563505,-788.58,0.00050684,120]
[331498759,1720440563576,-618.01,0.00050684,120]
[331498761,1720440563650,-500.0,0.00050684,120]
[331498762,1720440563721,-500.0,0.00050684,120]
[331498763,1720440563791,-500.0,0.00050684,120]
[331498764,1720440563861,-720.18,0.00050684,120]
[331498765,1720440563931,-500.0,0.00050684,120]
[331498766,1720440564003,-500.0,0.00050684,120]
[331498767,1720440564075,-500.0,0.00050684,120]
[331498768,1720440564150,-500.0,0.00050684,120]
[331498769,1720440564224,-511.48,0.00050684,120]
[331498770,1720440564300,-500.0,0.00050684,120]
[331498771,1720440564376,-500.0,0.00050684,120]
[331498772,1720440564460,-633.87,0.00050684,120]
[331498773,1720440564537,-885.43,0.00050684,120]
[331498774,1720440564612,-500.0,0.00050684,120]
[331498775,1720440564686,-536.5,0.00050684,120]
[331498776,1720440564761,-500.0,0.00050684,120]
[331498777,1720440564835,-500.0,0.00050684,120]
[331498778,1720440564909,-500.0,0.00050684,120]
[331498779,1720440564987,-500.0,0.00050684,120]
[331498780,1720440565064,-500.0,0.00050684,120]
[331498781,1720440565141,-739.48,0.00050684,120]
[331498782,1720440565216,-500.0,0.00050684,120]
[331498783,1720440565289,-500.0,0.00050684,120]
[331498784,1720440565361,-556.22,0.00050684,120]
[331498785,1720440565432,-500.0,0.00050684,120]
[331498786,1720440565504,-500.0,0.00050684,120]
[331498787,1720440565576,-500.0,0.00050684,120]
[331498788,1720440565651,-658.89,0.00050684,120]
[331498789,1720440565725,-500.0,0.00050684,120]
[331498790,1720440565796,-500.0,0.00050684,120]
[331498791,1720440565872,-500.0,0.00050684,120]
[331498792,1720440565946,-500.0,0.00050684,120]
[331498793,1720440566024,-500.0,0.00050684,120]
[331498794,1720440566101,-500.0,0.00050684,120]
[331498795,1720440566179,-1000.0,0.00050684,120]
[331498796,1720440566256,-1110.08,0.00050684,120]
[331498797,1720440566329,-287.57,0.00050684,120]
[331498798,1720440566402,-2819.9,0.00050684,120]
[331498799,1720440566473,-500.0,0.00050684,120]
[331498800,1720440566542,-735.58,0.00050684,120]
[331498801,1720440566616,-500.0,0.00050684,120]
[331498802,1720440566687,-500.0,0.00050684,30]
[331498803,1720440566756,-500.0,0.00050684,120]
[331498804,1720440566826,-500.0,0.00050684,120]
[331498805,1720440566896,-508.6,0.00050684,120]
[331498806,1720440566967,-500.0,0.00050684,120]
[331498807,1720440567040,-761.41,0.00050684,120]
[331498808,1720440567112,-757.98,0.00050684,120]
[331498809,1720440567183,-500.0,0.00050684,120]
[331498810,1720440567254,-500.0,0.00050684,120]
[331498811,1720440567324,-500.0,0.00050684,120]
[331498812,1720440567396,-744.56,0.00050684,120]
[331498813,1720440567466,-500.0,0.00050684,120]
[331498814,1720440567537,-571.86,0.00050684,120]
[331498815,1720440567607,-820.08,0.00050684,120]
[331498816,1720440567676,-976.88,0.00050684,120]
[331498817,1720440567749,-795.49,0.00050684,120]
[331498818,1720440567821,-633.46,0.00050684,120]
[331498819,1720440567896,-1023.57,0.00050684,120]
[331498820,1720440567970,-632.20430885,0.00050684,120]
[331498821,1720440568047,-500.0,0.00050684,120]
[331498822,1720440568126,-500.0,0.00050684,120]
[331498823,1720440568202,-500.0,0.00050684,120]
[331498824,1720440568278,-732.16,0.00050684,120]
[331498825,1720440568354,-500.0,0.00050684,120]
[331498826,1720440568429,-500.0,0.00050684,120]
[331498827,1720440568502,-500.0,0.00050684,120]
[331498828,1720440568574,-596.04,0.00050684,120]
[331498829,1720440568647,-584.19,0.00050684,120]
[331498830,1720440568721,-500.0,0.00050684,120]
[331498831,1720440568793,-1250.0,0.00050684,120]
[331498832,1720440568868,-204.81971141,0.00050684,120]
[331498833,1720440568944,-449.31656941,0.00050684,120]
[331498834,1720440569020,-500.0,0.00050684,120]
[331498835,1720440569093,-500.0,0.00050684,120]
[331498836,1720440569297,-1319.76,0.00050684,120]
[331498837,1720440569371,-500.0,0.00050684,120]
[331498838,1720440569441,-500.0,0.00050684,120]
[331498839,1720440569512,-500.0,0.00050684,120]
[331498840,1720440569580,-500.0,0.00050684,120]
[331498841,1720440569652,-500.0,0.00050684,120]
[331498842,1720440569721,-500.0,0.00050684,120]
[331498843,1720440569792,-777.23,0.00050684,120]
[331498844,1720440569861,-500.0,0.00050684,120]
[331498845,1720440569931,-786.03,0.00050684,120]
[331498846,1720440570001,-500.0,0.00050684,120]
[331498847,1720440570075,-1320.46,0.00050684,120]
[331498848,1720440570149,-993.73,0.00050684,120]
[331498849,1720440570221,-857.25,0.00050684,120]
[331498850,1720440570292,-631.99,0.00050684,120]
[331498851,1720440570365,-500.0,0.00050684,120]
[331498852,1720440570439,-526.26,0.00050684,120]
[331498853,1720440570511,-202.7193988,0.00050684,120]
[331498854,1720440570582,-500.0,0.00050684,120]
[331498855,1720440570893,-500.0,0.00050684,120]
[331498856,1720440570971,-834.16,0.00050684,120]
[331498857,1720440571042,-710.28,0.00050684,120]
[331498858,1720440571118,-500.0,0.00050684,120]
[331498859,1720440571190,-500.0,0.00050684,120]
[331498860,1720440571264,-500.0,0.00050684,120]
[331498861,1720440571342,-500.0,0.00050684,120]
[331498862,1720440571412,-907.14,0.00050684,120]
[331498863,1720440571486,-2847.84294933,0.00050684,30]
[331498864,1720440571558,-2847.84294933,0.00050684,30]
[331498865,1720440571631,-690.32776259,0.00050783,60]
[331498866,1720440571702,-841.19290663,0.0005079,60]
[331498867,1720440571772,-661.07927892,0.00050828,60]
[331498868,1720440571839,-222.15961385,0.00050909,60]
[331498869,1720440571904,-676.70274913,0.0005093,60]
[331498870,1720440571971,-20208.54,0.00050958,120]
[331498871,1720440572036,-5732.02,0.00050958,120]
[331498872,1720440572103,-4518.2,0.00050958,120]
[331498873,1720440572169,-3467.68,0.00050958,120]
[331498874,1720440572235,-3285.94,0.00050958,120]
[331498875,1720440572299,-843.34,0.00050958,120]
[331498876,1720440572362,-419.93886491,0.00050958,120]
[331498877,1720440572424,-500.0,0.00050958,120]
[331498878,1720440572487,-579.73,0.00050958,120]
[331498879,1720440572550,-7921.19,0.00050958,120]
[331498880,1720440572612,-500.0,0.00050958,120]
[331498881,1720440572674,-2995.09,0.00050958,120]
[331498882,1720440572736,-521.56,0.00050958,120]
[331498883,1720440572798,-500.0,0.00050958,120]
[331498884,1720440572858,-4816.6,0.00050958,120]
[331498885,1720440572919,-500.0,0.00050958,120]
[331498886,1720440572984,-500.0,0.00050958,120]
[331498887,1720440573074,-500.0,0.00050958,120]
[331498888,1720440573158,-500.0,0.00050958,120]
[331498889,1720440573235,-5616.29,0.00050958,120]
[331498890,1720440573311,-4754.74,0.00050958,120]
[331498891,1720440573381,-500.0,0.00050958,120]
[331498892,1720440573451,-514.09800898,0.00050958,120]
[331498893,1720440573525,-2818.99,0.00050958,120]
[331498894,1720440573607,-2101.17,0.00050958,120]
[331498895,1720440573691,-3610.51,0.00050958,120]
[331498896,1720440573773,-7384.37,0.00050958,120]
[331498897,1720440573850,-500.0,0.00050958,120]
[331498898,1720440573929,-13611.45,0.00050958,120]
[331498899,1720440574002,-965.22,0.00050958,120]
[331498900,1720440574074,-547.56,0.00050958,120]
[331498901,1720440574149,-500.0,0.00050958,120]
[331498902,1720440574232,-583.78,0.00050958,120]
[331498903,1720440574318,-3854.26,0.00050958,120]
[331498904,1720440574399,-164.28,0.00050958,120]
[331498905,1720440574478,-10162.8,0.00050958,120]
[331498906,1720440574555,-500.0,0.00050958,120]
[331498907,1720440574629,-500.0,0.00050958,120]
[331498908,1720440574701,-938.43,0.00050958,120]
[331498909,1720440574772,-500.0,0.00050958,120]
[331498910,1720440574844,-1124.37,0.00050958,120]
[331498911,1720440574913,-4983.01,0.00050958,120]
[331498912,1720440574984,-500.0,0.00050958,120]
[331498913,1720440575060,-5118.07,0.00050958,120]
[331498914,1720440575133,-500.0,0.00050958,120]
[331498915,1720440575208,-2432.5,0.00050958,120]
[331498916,1720440575287,-500.0,0.00050958,120]
[331498917,1720440575361,-500.0,0.00050958,120]
[331498918,1720440575436,-500.0,0.00050958,120]
[331498919,1720440575511,-620.6,0.00050958,120]
[331498920,1720440575590,-5565.77,0.00050958,120]
[331498921,1720440575668,-2686.57,0.00050958,120]
[331498922,1720440575744,-524.96,0.00050958,120]
[331498923,1720440575816,-500.0,0.00050958,120]
[331498924,1720440575889,-500.0,0.00050958,120]
[331498925,1720440575967,-257.58,0.00050958,120]
[331498926,1720440576046,-1454.12,0.00050958,120]
[331498927,1720440576122,-500.0,0.00050958,120]
[331498928,1720440576198,-5036.27,0.00050958,120]
[331498929,1720440576273,-2304.81,0.00050958,120]
[331498930,1720440576346,-500.0,0.00050958,120]
[331498931,1720440576418,-1067.33,0.00050958,120]
[331498932,1720440576492,-1767.38,0.00050958,120]
[331498933,1720440576569,-500.0,0.00050958,120]
[331498934,1720440576642,-5646.1,0.00050958,120]
[331498935,1720440576717,-500.0,0.00050958,120]
[331498936,1720440576794,-9047.3,0.00050958,120]
[331498937,1720440576867,-4919.53,0.00050958,120]
[331498938,1720440576943,-4701.07,0.00050958,120]
[331498939,1720440577018,-500.0,0.00050958,120]
[331498940,1720440577095,-1525.81,0.00050958,120]
[331498941,1720440577169,-1659.74,0.00050958,120]
[331498942,1720440577243,-4421.49,0.00050958,120]
[331498943,1720440577319,-2133.05,0.00050958,120]
[331498944,1720440577396,-7680.57,0.00050958,120]
[331498945,1720440577471,-500.0,0.00050958,120]
[331498946,1720440577546,-1188.25,0.00050958,120]
[331498947,1720440577622,-3352.13,0.00050958,120]
[331498948,1720440577699,-1759.96,0.00050958,120]
[331498949,1720440577774,-3903.92,0.00050958,120]
[331498950,1720440577850,-500.0,0.00050958,120]
[331498951,1720440577926,-500.0,0.00050958,120]
[331498952,1720440578002,-5951.51,0.00050958,120]
[331498953,1720440578081,-3833.49,0.00050958,120]
[331498954,1720440578159,-1631.9,0.00050958,120]
[331498955,1720440578234,-2176.54,0.00050958,120]
[331498956,1720440578311,-5146.59,0.00050958,120]
[331498957,1720440578387,-6347.68,0.00050958,120]
[331498958,1720440578674,-1088.69,0.00050958,120]
[331498959,1720440578749,-500.0,0.00050958,120]
[331498960,1720440578823,-500.0,0.00050958,120]
[331498961,1720440578896,-23579.31,0.00050958,120]
[331498962,1720440578971,-500.0,0.00050958,120]
[331498963,1720440579046,-3966.4,0.00050958,120]
[331498964,1720440579128,-2068.28,0.00050958,120]
[331498965,1720440579207,-500.0,0.00050958,120]
[331498966,1720440579284,-2578.3,0.00050958,120]
[331498967,1720440579359,-3921.63,0.00050958,120]
[331498968,1720440579436,-58243.57,0.00050958,120]
[331498969,1720440579513,-508.44,0.00050958,120]
[331498970,1720440579590,-627.12,0.00050958,120]
[331498971,1720440579665,-24232.54,0.00050958,120]
[331498972,1720440579739,-500.0,0.00050958,120]
[331498973,1720440579812,-500.0,0.00050958,120]